[Event "Titled Tuesday Blitz February 07 Late 2023"]
[White "Sokolovsky, Yahli"]
[Black "Becerra, Juan David"]
[WhiteFideId "2820242"]
[BlackFideId "4404998"]
[WhiteElo "2461"]
[BlackElo "2382"]
[Result "0-1"]
[Round "07"]
[TimeControl "180+2"]
[Date "2023.02.07"]
[WhiteClock "0:00:04"]
[BlackClock "0:00:04"]

1. b3 {[%clk 0:03:00]}  d5 {[%clk 0:02:32]} 2. e3 {[%clk 0:03:00]}  Nf6 {[%clk 0:02:31]} 3. Bb2 {[%clk 0:03:01]}  Bg4 {[%clk 0:02:32]} 4. Be2 {[%clk 0:03:01]}  Bxe2 {[%clk 0:02:30]} 5. Qxe2 {[%clk 0:03:02]}  c6 {[%clk 0:02:28]} 6. d4 {[%clk 0:02:59]}  Ne4 {[%clk 0:02:24]} 7. Nd2 {[%clk 0:02:48]}  Nxd2 {[%clk 0:02:17]} 8. Qxd2 {[%clk 0:02:47]}  e6 {[%clk 0:02:16]} 9. Nf3 {[%clk 0:02:40]}  Nd7 {[%clk 0:02:16]} 10. O-O {[%clk 0:02:40]}  Bd6 {[%clk 0:02:12]} 11. c4 {[%clk 0:02:40]}  O-O {[%clk 0:02:10]} 12. Rfe1 {[%clk 0:02:40]}  f5 {[%clk 0:02:09]} 13. a4 {[%clk 0:02:37]}  Rf6 {[%clk 0:02:04]} 14. Ba3 {[%clk 0:02:34]}  Bc7 {[%clk 0:02:03]} 15. Qb4 {[%clk 0:02:16]}  Rb8 {[%clk 0:01:46]} 16. Qe7 {[%clk 0:02:11]}  Qxe7 {[%clk 0:01:35]} 17. Bxe7 {[%clk 0:02:12]}  Rf7 {[%clk 0:01:35]} 18. Bb4 {[%clk 0:02:10]}  h6 {[%clk 0:01:34]} 19. a5 {[%clk 0:02:05]}  a6 {[%clk 0:01:32]} 20. Bc3 {[%clk 0:01:55]}  g5 {[%clk 0:01:31]} 21. Nd2 {[%clk 0:01:55]}  g4 {[%clk 0:01:17]} 22. b4 {[%clk 0:01:48]}  Nf6 {[%clk 0:01:11]} 23. b5 {[%clk 0:01:32]}  Ne4 {[%clk 0:00:56]} 24. Nxe4 {[%clk 0:01:30]}  fxe4 {[%clk 0:00:57]} 25. bxa6 {[%clk 0:01:04]}  bxa6 {[%clk 0:00:54]} 26. Reb1 {[%clk 0:01:05]}  Rff8 {[%clk 0:00:35]} 27. Bb4 {[%clk 0:00:44]}  Rfc8 {[%clk 0:00:32]} 28. Bc5 {[%clk 0:00:45]}  Rxb1+ {[%clk 0:00:30]} 29. Rxb1 {[%clk 0:00:46]}  Rb8 {[%clk 0:00:30]} 30. Rxb8+ {[%clk 0:00:18]}  Bxb8 {[%clk 0:00:29]} 31. Bb6 {[%clk 0:00:18]}  dxc4 {[%clk 0:00:21]} 32. Kf1 {[%clk 0:00:12]}  c3 {[%clk 0:00:16]} 33. Bc5 {[%clk 0:00:08]}  c2 {[%clk 0:00:15]} 34. Ba3 {[%clk 0:00:08]}  Bd6 {[%clk 0:00:14]} 35. Bb2 {[%clk 0:00:05]}  Bb4 {[%clk 0:00:13]} 36. Bc1 {[%clk 0:00:05]}  Bxa5 {[%clk 0:00:13]} 37. f3 {[%clk 0:00:05]}  gxf3 {[%clk 0:00:11]} 38. gxf3 {[%clk 0:00:06]}  exf3 {[%clk 0:00:11]} 39. Kf2 {[%clk 0:00:07]}  Bc3 {[%clk 0:00:09]} 40. Kxf3 {[%clk 0:00:07]}  a5 {[%clk 0:00:09]} 41. Ke2 {[%clk 0:00:08]}  e5 {[%clk 0:00:07]} 42. Kd3 {[%clk 0:00:07]}  exd4 {[%clk 0:00:04]} 43. exd4 {[%clk 0:00:08]}  Bb4 {[%clk 0:00:03]} 44. Kxc2 {[%clk 0:00:08]}  h5 {[%clk 0:00:02]} 45. Kb3 {[%clk 0:00:08]}  Kf7 {[%clk 0:00:03]} 46. Kc4 {[%clk 0:00:08]}  Ke6 {[%clk 0:00:03]} 47. h3 {[%clk 0:00:09]}  Bd6 {[%clk 0:00:03]} 48. Bd2 {[%clk 0:00:09]}  a4 {[%clk 0:00:04]} 49. Bc1 {[%clk 0:00:09]}  a3 {[%clk 0:00:04]} 50. Bd2 {[%clk 0:00:09]}  a2 {[%clk 0:00:04]} 51. Bc3 {[%clk 0:00:10]}  Be7 {[%clk 0:00:05]} 52. Kb3 {[%clk 0:00:10]}  Kd5 {[%clk 0:00:05]} 53. Kxa2 {[%clk 0:00:10]}  Kc4 {[%clk 0:00:05]} 54. Kb2 {[%clk 0:00:03]}  Bf6 {[%clk 0:00:05]} 55. Kc2 {[%clk 0:00:03]}  Bxd4 {[%clk 0:00:05]} 56. Ba5 {[%clk 0:00:04]}  c5 {[%clk 0:00:04]} 57. Kd2 {[%clk 0:00:03]}  Kd5 {[%clk 0:00:05]} 58. Ke2 {[%clk 0:00:02]}  Ke4 {[%clk 0:00:05]} 59. Kf1 {[%clk 0:00:03]}  c4 {[%clk 0:00:05]} 60. Kg2 {[%clk 0:00:02]}  Kd3 {[%clk 0:00:04]} 61. Bb4 {[%clk 0:00:03]}  Bc3 {[%clk 0:00:05]} 62. Bd6 {[%clk 0:00:02]}  Ba5 {[%clk 0:00:04]} 63. Be5 {[%clk 0:00:03]}  Bb6 {[%clk 0:00:05]} 64. Bb2 {[%clk 0:00:02]}  Bd4 {[%clk 0:00:05]} 65. Ba3 {[%clk 0:00:03]}  c3 {[%clk 0:00:05]} 66. Bb4 {[%clk 0:00:03]}  c2 {[%clk 0:00:06]} 67. Ba3 {[%clk 0:00:04]}  Bc5 {[%clk 0:00:04]} 68. Bc1 {[%clk 0:00:03]}  Bb4 {[%clk 0:00:05]} 69. Kf3 {[%clk 0:00:03]}  Bd2 {[%clk 0:00:04]} 70. Bb2 {[%clk 0:00:04]}  Kc4 {[%clk 0:00:03]} 71. Ke2 {[%clk 0:00:04]}  Kb3 {[%clk 0:00:04]} 0-1


[Site "https://www.chess.com"]

[Event "Titled Tuesday Blitz February 07 Late 2023"]
[White "Preotu, Razvan"]
[Black "Remolar Gallen, Jose"]
[WhiteFideId "2613280"]
[BlackFideId "2215187"]
[WhiteElo "2475"]
[BlackElo "2285"]
[Result "1-0"]
[Round "07"]
[TimeControl "180+2"]
[Date "2023.02.07"]
[WhiteClock "0:00:13"]
[BlackClock "0:00:08"]

1. e4 {[%clk 0:03:00]}  c5 {[%clk 0:03:00]} 2. Nf3 {[%clk 0:03:00]}  d6 {[%clk 0:03:00]} 3. d4 {[%clk 0:02:59]}  cxd4 {[%clk 0:03:01]} 4. Nxd4 {[%clk 0:02:59]}  Nf6 {[%clk 0:03:01]} 5. Nc3 {[%clk 0:03:00]}  a6 {[%clk 0:03:02]} 6. Rg1 {[%clk 0:02:58]}  e5 {[%clk 0:02:59]} 7. Nb3 {[%clk 0:02:58]}  h5 {[%clk 0:02:56]} 8. Bg5 {[%clk 0:02:57]}  Be6 {[%clk 0:02:53]} 9. Qd2 {[%clk 0:02:54]}  Nbd7 {[%clk 0:02:51]} 10. O-O-O {[%clk 0:02:54]}  Be7 {[%clk 0:02:50]} 11. f4 {[%clk 0:02:53]}  Qc7 {[%clk 0:02:49]} 12. Kb1 {[%clk 0:02:52]}  Rc8 {[%clk 0:02:36]} 13. h3 {[%clk 0:02:40]}  b5 {[%clk 0:02:31]} 14. f5 {[%clk 0:02:11]}  Bxb3 {[%clk 0:02:12]} 15. Bxf6 {[%clk 0:01:27]}  Nxf6 {[%clk 0:01:59]} 16. axb3 {[%clk 0:01:19]}  b4 {[%clk 0:01:56]} 17. Nd5 {[%clk 0:01:16]}  Nxd5 {[%clk 0:01:52]} 18. exd5 {[%clk 0:01:17]}  Bg5 {[%clk 0:01:49]} 19. Qd3 {[%clk 0:00:43]}  Be3 {[%clk 0:01:36]} 20. Rh1 {[%clk 0:00:44]}  h4 {[%clk 0:01:20]} 21. Be2 {[%clk 0:00:42]}  O-O {[%clk 0:01:15]} 22. f6 {[%clk 0:00:29]}  e4 {[%clk 0:01:05]} 23. Qxe4 {[%clk 0:00:26]}  Rfe8 {[%clk 0:01:02]} 24. Qd3 {[%clk 0:00:27]}  Bg5 {[%clk 0:00:54]} 25. Bg4 {[%clk 0:00:27]}  Rcd8 {[%clk 0:00:26]} 26. fxg7 {[%clk 0:00:25]}  Re3 {[%clk 0:00:24]} 27. Qf5 {[%clk 0:00:23]}  Qe7 {[%clk 0:00:22]} 28. Rhf1 {[%clk 0:00:14]}  Kxg7 {[%clk 0:00:13]} 29. Bh5 {[%clk 0:00:14]}  Rd7 {[%clk 0:00:10]} 30. Bxf7 {[%clk 0:00:13]}  Re5 {[%clk 0:00:08]} 31. Qg6+ {[%clk 0:00:13]} 1-0


[Site "https://www.chess.com"]

[Event "Titled Tuesday Blitz February 07 Late 2023"]
[White "Tatarinov, Dmitry"]
[Black "Zierk, Steven"]
[WhiteFideId "24160067"]
[BlackFideId "2034255"]
[WhiteElo "2310"]
[BlackElo "2488"]
[Result "0-1"]
[Round "07"]
[TimeControl "180+2"]
[Date "2023.02.07"]
[WhiteClock "0:00:25"]
[BlackClock "0:00:50"]

1. d4 {[%clk 0:03:00]}  e6 {[%clk 0:02:59]} 2. Nf3 {[%clk 0:03:01]}  f5 {[%clk 0:02:58]} 3. g3 {[%clk 0:03:00]}  Nf6 {[%clk 0:02:58]} 4. Bg2 {[%clk 0:03:01]}  d5 {[%clk 0:02:58]} 5. O-O {[%clk 0:03:01]}  Bd6 {[%clk 0:02:59]} 6. c4 {[%clk 0:03:01]}  c6 {[%clk 0:02:59]} 7. b3 {[%clk 0:03:02]}  Qe7 {[%clk 0:02:59]} 8. Bb2 {[%clk 0:02:59]}  O-O {[%clk 0:02:58]} 9. Nbd2 {[%clk 0:02:59]}  b6 {[%clk 0:02:56]} 10. a4 {[%clk 0:02:57]}  a5 {[%clk 0:02:55]} 11. Qc1 {[%clk 0:02:57]}  Na6 {[%clk 0:02:53]} 12. Ne5 {[%clk 0:02:57]}  Bb7 {[%clk 0:02:50]} 13. Ndf3 {[%clk 0:02:40]}  Rac8 {[%clk 0:02:47]} 14. cxd5 {[%clk 0:02:35]}  exd5 {[%clk 0:02:45]} 15. Qg5 {[%clk 0:02:32]}  Qe6 {[%clk 0:02:37]} 16. Rac1 {[%clk 0:02:22]}  Nb4 {[%clk 0:02:33]} 17. Qh4 {[%clk 0:02:07]}  Ne4 {[%clk 0:02:30]} 18. Ng5 {[%clk 0:02:06]}  Nxg5 {[%clk 0:02:25]} 19. Qxg5 {[%clk 0:02:01]}  Bxe5 {[%clk 0:02:17]} 20. dxe5 {[%clk 0:02:01]}  c5 {[%clk 0:02:17]} 21. Rfd1 {[%clk 0:01:54]}  Rf7 {[%clk 0:02:15]} 22. e3 {[%clk 0:01:54]}  h6 {[%clk 0:02:07]} 23. Qh5 {[%clk 0:01:52]}  Ba6 {[%clk 0:01:49]} 24. Rd2 {[%clk 0:01:45]}  Nd3 {[%clk 0:01:43]} 25. Rcd1 {[%clk 0:01:45]}  c4 {[%clk 0:01:43]} 26. bxc4 {[%clk 0:01:39]}  dxc4 {[%clk 0:01:44]} 27. Bc3 {[%clk 0:01:35]}  Bb7 {[%clk 0:01:37]} 28. Bxb7 {[%clk 0:01:32]}  Rxb7 {[%clk 0:01:37]} 29. Rb1 {[%clk 0:01:33]}  Rc5 {[%clk 0:01:16]} 30. Qh4 {[%clk 0:01:21]}  Kh7 {[%clk 0:01:08]} 31. e4 {[%clk 0:01:14]}  Nxe5 {[%clk 0:01:00]} 32. Bxe5 {[%clk 0:01:11]}  Qxe5 {[%clk 0:01:01]} 33. exf5 {[%clk 0:01:10]}  Qxf5 {[%clk 0:01:02]} 34. Rc1 {[%clk 0:01:03]}  c3 {[%clk 0:01:02]} 35. Rdc2 {[%clk 0:00:59]}  Rbc7 {[%clk 0:01:01]} 36. Qd4 {[%clk 0:00:58]}  Qf3 {[%clk 0:01:01]} 37. h4 {[%clk 0:00:53]}  Rd5 {[%clk 0:00:57]} 38. Qxb6 {[%clk 0:00:40]}  Rd1+ {[%clk 0:00:54]} 39. Rxd1 {[%clk 0:00:40]}  Qxd1+ {[%clk 0:00:55]} 40. Kh2 {[%clk 0:00:40]}  Qxc2 {[%clk 0:00:54]} 41. Qxc7 {[%clk 0:00:40]}  Qxf2+ {[%clk 0:00:55]} 42. Kh3 {[%clk 0:00:40]}  Qf1+ {[%clk 0:00:50]} 43. Kh2 {[%clk 0:00:32]}  Qe2+ {[%clk 0:00:50]} 44. Kh3 {[%clk 0:00:30]}  c2 {[%clk 0:00:50]} 45. h5 {[%clk 0:00:25]} 0-1


[Site "https://www.chess.com"]

[Event "Titled Tuesday Blitz February 07 Late 2023"]
[White "Golubev, Mikhail"]
[Black "Tari, Aryan"]
[WhiteFideId "14100983"]
[BlackFideId "1510045"]
[WhiteElo "2461"]
[BlackElo "2642"]
[Result "1-0"]
[Round "07"]
[TimeControl "180+2"]
[Date "2023.02.07"]
[WhiteClock "0:00:22"]
[BlackClock "0:00:04"]

1. e4 {[%clk 0:03:00]}  c5 {[%clk 0:02:53]} 2. Nf3 {[%clk 0:03:00]}  d6 {[%clk 0:02:53]} 3. d4 {[%clk 0:03:00]}  cxd4 {[%clk 0:02:54]} 4. Nxd4 {[%clk 0:03:00]}  Nf6 {[%clk 0:02:54]} 5. Nc3 {[%clk 0:03:01]}  a6 {[%clk 0:02:55]} 6. Bc4 {[%clk 0:03:01]}  e6 {[%clk 0:02:54]} 7. O-O {[%clk 0:03:01]}  Be7 {[%clk 0:02:48]} 8. Bb3 {[%clk 0:03:01]}  O-O {[%clk 0:02:46]} 9. f4 {[%clk 0:03:01]}  b5 {[%clk 0:02:45]} 10. e5 {[%clk 0:03:01]}  dxe5 {[%clk 0:02:42]} 11. fxe5 {[%clk 0:03:02]}  Nfd7 {[%clk 0:02:42]} 12. Be3 {[%clk 0:02:53]}  Nxe5 {[%clk 0:02:10]} 13. Qh5 {[%clk 0:02:52]}  Nbc6 {[%clk 0:02:11]} 14. Rad1 {[%clk 0:02:49]}  Qc7 {[%clk 0:02:04]} 15. Nxc6 {[%clk 0:02:47]}  Nxc6 {[%clk 0:02:02]} 16. Kh1 {[%clk 0:02:45]}  Bb7 {[%clk 0:01:45]} 17. Bf4 {[%clk 0:02:24]}  Qb6 {[%clk 0:01:14]} 18. Rd3 {[%clk 0:02:18]}  Bf6 {[%clk 0:01:07]} 19. Rh3 {[%clk 0:02:05]}  h6 {[%clk 0:00:55]} 20. Bxh6 {[%clk 0:02:05]}  g6 {[%clk 0:00:52]} 21. Qf3 {[%clk 0:01:45]}  Be5 {[%clk 0:00:34]} 22. Bxf8 {[%clk 0:01:42]}  Rxf8 {[%clk 0:00:35]} 23. Bxe6 {[%clk 0:01:21]}  Nd4 {[%clk 0:00:35]} 24. Bxf7+ {[%clk 0:01:18]}  Kg7 {[%clk 0:00:35]} 25. Qe3 {[%clk 0:01:13]}  Bf6 {[%clk 0:00:26]} 26. Nd5 {[%clk 0:00:53]}  Bxd5 {[%clk 0:00:19]} 27. Bxd5 {[%clk 0:00:54]}  Bg5 {[%clk 0:00:10]} 28. Qe5+ {[%clk 0:00:44]}  Bf6 {[%clk 0:00:10]} 29. Qf4 {[%clk 0:00:39]}  Nf5 {[%clk 0:00:08]} 30. Be4 {[%clk 0:00:28]}  Qd4 {[%clk 0:00:04]} 31. Bxf5 {[%clk 0:00:27]}  Qxf4 {[%clk 0:00:05]} 32. Rxf4 {[%clk 0:00:27]}  gxf5 {[%clk 0:00:06]} 33. Rg3+ {[%clk 0:00:24]}  Kf7 {[%clk 0:00:04]} 34. Rxf5 {[%clk 0:00:24]}  Ke6 {[%clk 0:00:04]} 35. Rgf3 {[%clk 0:00:23]}  Ke7 {[%clk 0:00:04]} 36. Rxf6 {[%clk 0:00:23]}  Rd8 {[%clk 0:00:03]} 37. Rf7+ {[%clk 0:00:22]}  Ke6 {[%clk 0:00:03]} 38. h3 {[%clk 0:00:22]}  Ke5 {[%clk 0:00:04]} 39. Kh2 {[%clk 0:00:22]} 1-0


[Site "https://www.chess.com"]

[Event "Titled Tuesday Blitz February 07 Late 2023"]
[White "Rustemov, Alexander"]
[Black "Filgueira, Hernan"]
[WhiteFideId "4119002"]
[BlackFideId "101770"]
[WhiteElo "2525"]
[BlackElo "2283"]
[Result "1-0"]
[Round "07"]
[TimeControl "180+2"]
[Date "2023.02.07"]
[WhiteClock "0:00:34"]
[BlackClock "0:00:03"]

1. d4 {[%clk 0:02:57]}  d5 {[%clk 0:02:58]} 2. c4 {[%clk 0:02:57]}  e6 {[%clk 0:02:58]} 3. Nc3 {[%clk 0:02:56]}  c6 {[%clk 0:02:58]} 4. e3 {[%clk 0:02:56]}  Nf6 {[%clk 0:02:58]} 5. Nf3 {[%clk 0:02:56]}  a6 {[%clk 0:02:58]} 6. c5 {[%clk 0:02:51]}  Nbd7 {[%clk 0:02:55]} 7. b4 {[%clk 0:02:49]}  g6 {[%clk 0:02:53]} 8. Bb2 {[%clk 0:02:48]}  Bg7 {[%clk 0:02:53]} 9. Bd3 {[%clk 0:02:46]}  O-O {[%clk 0:02:53]} 10. h3 {[%clk 0:02:45]}  Ne8 {[%clk 0:02:49]} 11. Ne2 {[%clk 0:02:43]}  Qc7 {[%clk 0:02:42]} 12. O-O {[%clk 0:02:37]}  e5 {[%clk 0:02:42]} 13. dxe5 {[%clk 0:02:36]}  Nxe5 {[%clk 0:02:42]} 14. Nxe5 {[%clk 0:02:34]}  Bxe5 {[%clk 0:02:41]} 15. Qc2 {[%clk 0:02:28]}  Ng7 {[%clk 0:02:39]} 16. Bxe5 {[%clk 0:02:25]}  Qxe5 {[%clk 0:02:39]} 17. Qc3 {[%clk 0:02:25]}  Qe7 {[%clk 0:02:31]} 18. Nd4 {[%clk 0:02:18]}  Bd7 {[%clk 0:02:21]} 19. Rfe1 {[%clk 0:02:17]}  f5 {[%clk 0:02:18]} 20. f4 {[%clk 0:02:11]}  g5 {[%clk 0:02:11]} 21. Nf3 {[%clk 0:02:10]}  h6 {[%clk 0:02:07]} 22. Qe5 {[%clk 0:02:05]}  Qxe5 {[%clk 0:01:54]} 23. Nxe5 {[%clk 0:02:04]}  Be6 {[%clk 0:01:54]} 24. g3 {[%clk 0:02:00]}  Rfd8 {[%clk 0:01:39]} 25. Kf2 {[%clk 0:01:57]}  Kf8 {[%clk 0:01:31]} 26. Nf3 {[%clk 0:01:56]}  g4 {[%clk 0:01:23]} 27. Nd4 {[%clk 0:01:54]}  Bd7 {[%clk 0:01:22]} 28. Rh1 {[%clk 0:01:37]}  h5 {[%clk 0:01:21]} 29. a4 {[%clk 0:01:37]}  Ke7 {[%clk 0:01:20]} 30. Ke2 {[%clk 0:01:33]}  Kf6 {[%clk 0:01:19]} 31. Kd2 {[%clk 0:01:33]}  Rh8 {[%clk 0:01:11]} 32. h4 {[%clk 0:01:21]}  Rhc8 {[%clk 0:01:06]} 33. Rhc1 {[%clk 0:01:20]}  Ne8 {[%clk 0:00:57]} 34. Rab1 {[%clk 0:01:14]}  Nc7 {[%clk 0:00:56]} 35. Rb2 {[%clk 0:01:14]}  Ra7 {[%clk 0:00:54]} 36. Rcb1 {[%clk 0:01:13]}  Rca8 {[%clk 0:00:51]} 37. Kc3 {[%clk 0:01:12]}  Re8 {[%clk 0:00:46]} 38. Kd2 {[%clk 0:01:09]}  Rea8 {[%clk 0:00:44]} 39. Rb3 {[%clk 0:01:08]}  Re8 {[%clk 0:00:44]} 40. R1b2 {[%clk 0:01:08]}  Rea8 {[%clk 0:00:42]} 41. b5 {[%clk 0:01:07]}  axb5 {[%clk 0:00:42]} 42. axb5 {[%clk 0:01:08]}  cxb5 {[%clk 0:00:38]} 43. Bxb5 {[%clk 0:01:07]}  Bc8 {[%clk 0:00:34]} 44. Bd3 {[%clk 0:01:04]}  Ra2 {[%clk 0:00:33]} 45. Rb6+ {[%clk 0:01:04]}  Ke7 {[%clk 0:00:27]} 46. Nxf5+ {[%clk 0:01:01]}  Bxf5 {[%clk 0:00:25]} 47. Bxf5 {[%clk 0:01:02]}  Rxb2+ {[%clk 0:00:23]} 48. Rxb2 {[%clk 0:01:02]}  Ra7 {[%clk 0:00:22]} 49. Rb6 {[%clk 0:00:55]}  Ra5 {[%clk 0:00:12]} 50. Rxb7 {[%clk 0:00:54]}  Rxc5 {[%clk 0:00:12]} 51. Bg6 {[%clk 0:00:51]}  Kf6 {[%clk 0:00:10]} 52. Bxh5 {[%clk 0:00:51]}  d4 {[%clk 0:00:10]} 53. Bxg4 {[%clk 0:00:49]}  dxe3+ {[%clk 0:00:09]} 54. Kxe3 {[%clk 0:00:49]}  Rc3+ {[%clk 0:00:07]} 55. Kf2 {[%clk 0:00:49]}  Nd5 {[%clk 0:00:06]} 56. Rb2 {[%clk 0:00:41]}  Ne3 {[%clk 0:00:04]} 57. Bf3 {[%clk 0:00:39]}  Nf5 {[%clk 0:00:03]} 58. h5 {[%clk 0:00:35]}  Nd4 {[%clk 0:00:03]} 59. Bg4 {[%clk 0:00:34]} 1-0


[Site "https://www.chess.com"]

[Event "Titled Tuesday Blitz February 07 Late 2023"]
[White "Toncheva, Nadya"]
[Black "Alex_Sahakyan2006"]
[WhiteFideId "2924056"]
[WhiteElo "2295"]
[BlackElo "2733"]
[Result "0-1"]
[Round "07"]
[TimeControl "180+2"]
[Date "2023.02.07"]
[WhiteClock "0:00:06"]
[BlackClock "0:00:05"]

1. e4 {[%clk 0:03:00]}  g6 {[%clk 0:02:55]} 2. d4 {[%clk 0:03:00]}  Bg7 {[%clk 0:02:55]} 3. c4 {[%clk 0:03:00]}  c5 {[%clk 0:02:54]} 4. d5 {[%clk 0:03:00]}  b5 {[%clk 0:02:52]} 5. cxb5 {[%clk 0:02:59]}  a6 {[%clk 0:02:52]} 6. b6 {[%clk 0:02:59]}  d6 {[%clk 0:02:51]} 7. Qb3 {[%clk 0:02:56]}  Bb7 {[%clk 0:02:29]} 8. a4 {[%clk 0:02:33]}  a5 {[%clk 0:02:25]} 9. Nf3 {[%clk 0:02:30]}  Nd7 {[%clk 0:02:20]} 10. Bb5 {[%clk 0:02:30]}  Nf6 {[%clk 0:02:18]} 11. Nc3 {[%clk 0:02:27]}  O-O {[%clk 0:02:15]} 12. O-O {[%clk 0:02:27]}  Nxb6 {[%clk 0:02:15]} 13. Bg5 {[%clk 0:02:22]}  Rb8 {[%clk 0:01:52]} 14. Qc2 {[%clk 0:02:20]}  Na8 {[%clk 0:01:44]} 15. Nd2 {[%clk 0:02:14]}  Nc7 {[%clk 0:01:43]} 16. Bd3 {[%clk 0:02:12]}  Na6 {[%clk 0:01:27]} 17. Qc1 {[%clk 0:01:50]}  Nb4 {[%clk 0:01:26]} 18. Be2 {[%clk 0:01:45]}  Nd7 {[%clk 0:01:14]} 19. Nc4 {[%clk 0:01:44]}  Ba6 {[%clk 0:00:58]} 20. Bh6 {[%clk 0:01:41]}  Bxc4 {[%clk 0:00:55]} 21. Bxc4 {[%clk 0:01:40]}  Bxh6 {[%clk 0:00:33]} 22. Qxh6 {[%clk 0:01:41]}  Nc2 {[%clk 0:00:33]} 23. Rab1 {[%clk 0:01:35]}  Ne5 {[%clk 0:00:29]} 24. Bb5 {[%clk 0:01:32]}  Nd4 {[%clk 0:00:20]} 25. h3 {[%clk 0:01:19]}  f5 {[%clk 0:00:18]} 26. exf5 {[%clk 0:01:12]}  Rxf5 {[%clk 0:00:18]} 27. Rbe1 {[%clk 0:01:01]}  Rh5 {[%clk 0:00:12]} 28. Qe3 {[%clk 0:00:45]}  Nc2 {[%clk 0:00:10]} 29. Qe2 {[%clk 0:00:27]}  Nxe1 {[%clk 0:00:10]} 30. Rxe1 {[%clk 0:00:27]}  Qf8 {[%clk 0:00:11]} 31. Qe3 {[%clk 0:00:25]}  Rf5 {[%clk 0:00:10]} 32. f3 {[%clk 0:00:24]}  Qf7 {[%clk 0:00:07]} 33. Qe2 {[%clk 0:00:19]}  Rf8 {[%clk 0:00:07]} 34. Qe3 {[%clk 0:00:15]}  Qf6 {[%clk 0:00:04]} 35. Ne4 {[%clk 0:00:12]}  Qh4 {[%clk 0:00:04]} 36. Re2 {[%clk 0:00:10]}  Rxf3 {[%clk 0:00:05]} 37. gxf3 {[%clk 0:00:09]}  Rxf3 {[%clk 0:00:05]} 38. Qg5 {[%clk 0:00:07]}  Qxh3 {[%clk 0:00:04]} 39. Qg2 {[%clk 0:00:04]}  Qh5 {[%clk 0:00:03]} 40. Ng3 {[%clk 0:00:03]}  Qg4 {[%clk 0:00:03]} 41. Re4 {[%clk 0:00:02]}  Qxg3 {[%clk 0:00:03]} 42. Qxg3 {[%clk 0:00:03]}  Rxg3+ {[%clk 0:00:04]} 43. Kf2 {[%clk 0:00:03]}  Rf3+ {[%clk 0:00:04]} 44. Ke2 {[%clk 0:00:04]}  Rb3 {[%clk 0:00:04]} 45. Kd2 {[%clk 0:00:03]}  Rxb2+ {[%clk 0:00:04]} 46. Kc3 {[%clk 0:00:04]}  Rb1 {[%clk 0:00:04]} 47. Rf4 {[%clk 0:00:04]}  Kg7 {[%clk 0:00:04]} 48. Rf2 {[%clk 0:00:03]}  g5 {[%clk 0:00:04]} 49. Kc2 {[%clk 0:00:03]}  Rb4 {[%clk 0:00:04]} 50. Kc3 {[%clk 0:00:03]}  h5 {[%clk 0:00:04]} 51. Rf5 {[%clk 0:00:03]}  Kg6 {[%clk 0:00:03]} 52. Rf8 {[%clk 0:00:04]}  h4 {[%clk 0:00:04]} 53. Ra8 {[%clk 0:00:04]}  h3 {[%clk 0:00:04]} 54. Rh8 {[%clk 0:00:04]}  Rh4 {[%clk 0:00:03]} 55. Rxh4 {[%clk 0:00:04]}  gxh4 {[%clk 0:00:04]} 56. Bf1 {[%clk 0:00:05]}  h2 {[%clk 0:00:04]} 57. Bg2 {[%clk 0:00:05]}  Kf5 {[%clk 0:00:04]} 58. Bh1 {[%clk 0:00:05]}  Kf4 {[%clk 0:00:05]} 59. Kd2 {[%clk 0:00:06]}  Kg3 {[%clk 0:00:05]} 60. Ke3 {[%clk 0:00:06]}  c4 {[%clk 0:00:05]} 61. Ke4 {[%clk 0:00:06]}  Kf2 {[%clk 0:00:05]} 62. Kf4 {[%clk 0:00:06]}  c3 {[%clk 0:00:05]} 0-1


[Site "https://www.chess.com"]

[Event "Titled Tuesday Blitz February 07 Late 2023"]
[White "Cuenca Jimenez, Jose Fernando"]
[Black "Kaplan, Avi Harrison"]
[WhiteFideId "2255570"]
[BlackFideId "30934559"]
[WhiteElo "2535"]
[BlackElo "2146"]
[Result "0-1"]
[Round "07"]
[TimeControl "180+2"]
[Date "2023.02.07"]
[WhiteClock "0:00:01"]
[BlackClock "0:00:12"]

1. d4 {[%clk 0:03:00]}  g6 {[%clk 0:03:00]} 2. c4 {[%clk 0:02:55]}  Bg7 {[%clk 0:03:00]} 3. Nc3 {[%clk 0:02:55]}  c5 {[%clk 0:02:59]} 4. d5 {[%clk 0:02:53]}  Bxc3+ {[%clk 0:02:59]} 5. bxc3 {[%clk 0:02:53]}  f5 {[%clk 0:02:59]} 6. e4 {[%clk 0:02:53]}  fxe4 {[%clk 0:02:58]} 7. f3 {[%clk 0:02:53]}  d6 {[%clk 0:02:53]} 8. fxe4 {[%clk 0:02:48]}  Nf6 {[%clk 0:02:48]} 9. Bd3 {[%clk 0:02:23]}  O-O {[%clk 0:02:43]} 10. Nf3 {[%clk 0:02:20]}  Bg4 {[%clk 0:02:37]} 11. Bh6 {[%clk 0:02:14]}  Rf7 {[%clk 0:02:18]} 12. O-O {[%clk 0:02:14]}  Nbd7 {[%clk 0:02:15]} 13. h3 {[%clk 0:02:12]}  Bxf3 {[%clk 0:02:14]} 14. gxf3 {[%clk 0:02:12]}  Nh5 {[%clk 0:02:05]} 15. f4 {[%clk 0:02:08]}  b5 {[%clk 0:01:43]} 16. cxb5 {[%clk 0:01:52]}  c4 {[%clk 0:01:34]} 17. Bxc4 {[%clk 0:01:19]}  Rc8 {[%clk 0:01:20]} 18. Be2 {[%clk 0:00:54]}  Ng3 {[%clk 0:01:20]} 19. Bg4 {[%clk 0:00:50]}  Nxf1 {[%clk 0:01:09]} 20. Qxf1 {[%clk 0:00:49]}  Rxc3 {[%clk 0:01:03]} 21. Qf2 {[%clk 0:00:38]}  Nc5 {[%clk 0:00:56]} 22. Rd1 {[%clk 0:00:23]}  Qa5 {[%clk 0:00:48]} 23. f5 {[%clk 0:00:20]}  Nxe4 {[%clk 0:00:41]} 24. Qd4 {[%clk 0:00:18]}  Rg3+ {[%clk 0:00:40]} 25. Kh1 {[%clk 0:00:14]}  gxf5 {[%clk 0:00:26]} 26. Bh5 {[%clk 0:00:11]}  Rf6 {[%clk 0:00:23]} 27. Rg1 {[%clk 0:00:02]}  Rxh6 {[%clk 0:00:15]} 28. Rxg3+ {[%clk 0:00:02]}  Nxg3+ {[%clk 0:00:15]} 29. Kg2 {[%clk 0:00:01]}  Nxh5 {[%clk 0:00:15]} 30. Qc4 {[%clk 0:00:01]}  Rg6+ {[%clk 0:00:14]} 31. Kf3 {[%clk 0:00:01]}  Rg3+ {[%clk 0:00:12]} 32. Kf2 {[%clk 0:00:01]}  Qd2+ {[%clk 0:00:12]} 0-1


[Site "https://www.chess.com"]

[Event "Titled Tuesday Blitz February 07 Late 2023"]
[White "Yeritsyan, Hayk"]
[Black "Adewumi, Tanitoluwa"]
[WhiteFideId "13307320"]
[BlackFideId "30966396"]
[WhiteElo "2241"]
[BlackElo "2283"]
[Result "0-1"]
[Round "07"]
[TimeControl "180+2"]
[Date "2023.02.07"]
[WhiteClock "0:01:35"]
[BlackClock "0:01:02"]

1. d4 {[%clk 0:03:00]}  Nf6 {[%clk 0:02:56]} 2. Nf3 {[%clk 0:03:01]}  e6 {[%clk 0:02:55]} 3. e3 {[%clk 0:03:00]}  b6 {[%clk 0:02:54]} 4. Bd3 {[%clk 0:03:01]}  Bb7 {[%clk 0:02:54]} 5. Nbd2 {[%clk 0:03:01]}  Be7 {[%clk 0:02:54]} 6. c3 {[%clk 0:03:01]}  O-O {[%clk 0:02:55]} 7. O-O {[%clk 0:03:01]}  c5 {[%clk 0:02:55]} 8. Qe2 {[%clk 0:03:01]}  Nc6 {[%clk 0:02:55]} 9. Re1 {[%clk 0:03:00]}  Rc8 {[%clk 0:02:52]} 10. a3 {[%clk 0:03:00]}  cxd4 {[%clk 0:02:47]} 11. exd4 {[%clk 0:03:00]}  d5 {[%clk 0:02:39]} 12. Ne5 {[%clk 0:02:57]}  Bd6 {[%clk 0:02:04]} 13. f4 {[%clk 0:02:54]}  Ne7 {[%clk 0:02:02]} 14. Qf3 {[%clk 0:02:50]}  Bb8 {[%clk 0:01:42]} 15. g4 {[%clk 0:02:47]}  Nd7 {[%clk 0:01:37]} 16. Qh3 {[%clk 0:02:46]}  Ng6 {[%clk 0:01:29]} 17. Qg3 {[%clk 0:02:42]}  Nxf4 {[%clk 0:01:13]} 18. Qxf4 {[%clk 0:02:34]}  f6 {[%clk 0:01:13]} 19. Qe3 {[%clk 0:01:42]}  fxe5 {[%clk 0:01:06]} 20. dxe5 {[%clk 0:01:42]}  Nxe5 {[%clk 0:01:05]} 21. h3 {[%clk 0:01:41]}  Qh4 {[%clk 0:01:03]} 22. Nf1 {[%clk 0:01:38]}  Nf3+ {[%clk 0:01:02]} 23. Kg2 {[%clk 0:01:35]}  Nxe1+ {[%clk 0:01:02]} 0-1


[Site "https://www.chess.com"]